fUSD/lending_fUSD_20240625
["ID","MTS","AMOUNT","RATE_DAILY","PERIOD"]
[330371270,1719337885065,-500.0,0.00019452,2]
[330371271,1719337885075,-9362.98,0.00019452,2]
[330371272,1719337885086,-1660.97,0.00019452,2]
[330371273,1719337885096,-987.45,0.00019452,2]
[330371274,1719337885106,-500.0,0.00019452,2]
[330371275,1719337885116,-3674.69,0.00019452,2]
[330371276,1719337885125,-500.0,0.00019452,2]
[330371277,1719337885135,-500.0,0.00019452,2]
[330371278,1719337885150,-500.0,0.00019452,2]
[330371279,1719337885160,-500.0,0.00019452,2]
[330371280,1719337885170,-521.43,0.00019452,2]
[330371281,1719337885179,-500.0,0.00019452,2]
[330371282,1719337885190,-500.0,0.00019452,2]
[330371283,1719337885199,-3489.35,0.00019452,2]
[330371284,1719337885209,-1828.54,0.00019452,2]
[330371285,1719337885218,-500.0,0.00019452,2]
[330371286,1719337885231,-500.0,0.00019452,2]
[330371287,1719337885241,-1060.9,0.00019452,2]
[330371288,1719337885250,-500.0,0.00019452,2]
[330371289,1719337885260,-267.98907608,0.00019452,2]
[330371290,1719337885270,-1048.33,0.00019452,2]
[330371291,1719337885280,-500.0,0.00019452,2]
[330371292,1719337885290,-7330.4,0.00019452,2]
[330371293,1719337885300,-582.75,0.00019452,2]
[330371294,1719337885309,-500.0,0.00019452,2]
[330371295,1719337885320,-500.0,0.00019452,2]
[330371296,1719337885332,-500.0,0.00019452,2]
[330371297,1719337885341,-50997.71,0.00019452,2]
[330371298,1719337885353,-1090.36,0.00019452,2]
[330371299,1719337885363,-3826.38,0.00019452,2]
[330371300,1719337885372,-500.0,0.00019452,2]
[330371301,1719337885382,-588.44,0.00019452,2]
[330371302,1719337885392,-1076.79,0.00019452,2]
[330371303,1719337885402,-500.0,0.00019452,2]
[330371304,1719337885411,-875.7,0.00019452,2]
[330371305,1719337885421,-2013.15,0.00019452,2]
[330371306,1719337885430,-1764.68,0.00019452,2]
[330371307,1719337885440,-500.0,0.00019452,2]
[330371308,1719337885449,-500.0,0.00019452,2]
[330371309,1719337885458,-2546.28,0.00019452,2]
[330371310,1719337885468,-1202.57,0.00019452,2]
[330371311,1719337885477,-575.15,0.00019452,2]
[330371312,1719337885487,-710.06,0.00019452,2]
[330371313,1719337885496,-500.0,0.00019452,2]
[330371314,1719337885506,-500.0,0.00019452,2]
[330371315,1719337885515,-13097.11,0.00019452,2]
[330371316,1719337885524,-500.0,0.00019452,2]
[330371317,1719337885534,-2661.42,0.00019452,2]
[330371318,1719337885543,-2226.45,0.00019452,2]
[330371319,1719337885552,-500.0,0.00019452,2]
[330371320,1719337885562,-632.99,0.00019452,2]
[330371321,1719337885573,-500.0,0.00019452,2]
[330371322,1719337885582,-500.0,0.00019452,2]
[330371323,1719337885591,-538.22,0.00019452,2]
[330371324,1719337885601,-1320.08,0.00019452,2]
[330371325,1719337885610,-2469.45,0.00019452,2]
[330371326,1719337885620,-500.0,0.00019452,2]
[330371327,1719337885630,-500.0,0.00019452,2]
[330371328,1719337885640,-500.0,0.00019452,2]
[330371329,1719337885649,-564.19196553,0.00019452,2]
[330371330,1719337885658,-38471.4,0.00019452,2]
[330371331,1719337885668,-500.0,0.00019452,2]
[330371332,1719337885678,-501.22412041,0.00019452,2]
[330371333,1719337885687,-1721.67,0.00019452,2]
[330371334,1719337885697,-500.0,0.00019452,2]
[330371335,1719337885706,-1003.19,0.00019452,2]
[330371336,1719337885716,-1938.52,0.00019452,2]
[330371337,1719337885726,-3940.81,0.00019452,2]
[330371338,1719337885735,-2588.15,0.00019452,2]
[330371339,1719337885745,-500.0,0.00019452,2]
[330371340,1719337885755,-500.0,0.00019452,2]
[330371341,1719337885764,-500.0,0.00019452,2]
[330371342,1719337885774,-7195.96,0.00019452,2]
[330371343,1719337885783,-500.0,0.00019452,2]
[330371344,1719337885793,-500.0,0.00019452,2]
[330371345,1719337885803,-500.0,0.00019452,2]
[330371346,1719337885812,-39156.53,0.00019452,2]
[330371347,1719337885821,-3038.22,0.00019452,2]
[330371348,1719337885830,-500.0,0.00019452,2]
[330371349,1719337885839,-3163.49,0.00019452,2]
[330371350,1719337885849,-935.24,0.00019452,2]
[330371351,1719337885859,-860.82,0.00019452,2]
[330371352,1719337885868,-1243.76,0.00019452,2]
[330371353,1719337885877,-500.0,0.00019452,2]
[330371354,1719337885887,-500.0,0.00019452,2]
[330371355,1719337885896,-500.0,0.00019452,2]
[330371356,1719337885905,-5532.62,0.00019452,2]
[330371357,1719337885916,-500.0,0.00019452,2]
[330371358,1719337885928,-500.0,0.00019452,2]
[330371359,1719337885938,-27639.02,0.00019452,2]
[330371360,1719337885950,-2133.33,0.00019452,2]
[330371361,1719337885959,-3599.25,0.00019452,2]
[330371362,1719337885969,-514.79130087,0.00019452,2]
[330371363,1719337885981,-500.0,0.00019452,2]
[330371364,1719337885989,-1003.49,0.00019452,2]
[330371365,1719337885998,-3089.03,0.00019452,2]
[330371366,1719337886007,-804.85,0.00019452,2]
[330371367,1719337886015,-13348.12,0.00019452,2]
[330371368,1719337886024,-500.0,0.00019452,2]
[330371369,1719337886033,-500.0,0.00019452,2]
[330371370,1719337886043,-500.0,0.00019452,2]
[330371371,1719337886052,-3865.6,0.00019452,2]
[330371372,1719337886061,-1591.79,0.00019452,2]
[330371373,1719337886071,-19322.86,0.00019452,2]
[330371374,1719337886081,-500.0,0.00019452,2]
[330371375,1719337886090,-500.0,0.00019452,2]
[330371376,1719337886099,-828.38,0.00019452,2]
[330371377,1719337886108,-500.0,0.00019452,2]
[330371378,1719337886118,-500.0,0.00019452,2]
[330371379,1719337886127,-516.72,0.00019452,2]
[330371380,1719337886136,-500.0,0.00019452,2]
[330371381,1719337886147,-500.0,0.00019452,2]
[330371382,1719337886156,-500.0,0.00019452,2]
[330371383,1719337886165,-500.0,0.00019452,2]
[330371384,1719337886175,-3823.25,0.00019452,2]
[330371385,1719337886183,-2767.76,0.00019452,2]
[330371386,1719337886194,-2132.96,0.00019452,2]
[330371387,1719337886203,-1930.49,0.00019452,2]
[330371388,1719337886212,-829.42,0.00019452,2]
[330371389,1719337886223,-2051.61,0.00019452,2]
[330371390,1719337886232,-768.12,0.00019452,2]
[330371391,1719337886242,-500.0,0.00019452,2]
[330371392,1719337886251,-500.0,0.00019452,2]
[330371393,1719337886260,-1106.84,0.00019452,2]
[330371394,1719337886269,-501.59233149,0.00019452,2]
[330371395,1719337886278,-9367.05,0.00019452,2]
[330371396,1719337886287,-504.07088666,0.00019452,2]
[330371397,1719337886297,-500.0,0.00019452,2]
[330371398,1719337886306,-3643.02,0.00019452,2]
[330371399,1719337886315,-2716.1,0.00019452,2]
[330371400,1719337886326,-571.25,0.00019452,2]
[330371401,1719337886338,-500.0,0.00019452,2]
[330371402,1719337886349,-500.0,0.00019452,2]
[330371403,1719337886358,-5116.79,0.00019452,2]
[330371404,1719337886368,-6152.62,0.00019452,2]
[330371405,1719337886378,-500.0,0.00019452,2]
[330371406,1719337886390,-500.0,0.00019452,2]
[330371407,1719337886407,-500.0,0.00019452,2]
[330371408,1719337886416,-500.0,0.00019452,2]
[330371409,1719337886425,-500.0,0.00019452,2]
[330371410,1719337886434,-19689.46,0.00019452,2]
[330371411,1719337886443,-500.0,0.00019452,2]
[330371412,1719337886452,-658.03,0.00019452,2]
[330371413,1719337886461,-20168.94,0.00019452,2]
[330371414,1719337886470,-233.14966638,0.00019452,2]
[330371415,1719337886479,-1026.1,0.00019452,2]
[330371416,1719337886488,-1640.24,0.00019452,2]
[330371417,1719337886498,-500.0,0.00019452,2]
[330371418,1719337886507,-1760.02,0.00019452,2]
[330371419,1719337886516,-500.0,0.00019452,2]
[330371420,1719337886525,-500.0,0.00019452,2]
[330371421,1719337886534,-586.74688784,0.00019452,2]
[330371422,1719337886544,-500.0,0.00019452,2]
[330371423,1719337886553,-1038.72,0.00019452,2]
[330371424,1719337886562,-3388.45,0.00019452,2]
[330371425,1719337886570,-500.0,0.00019452,2]
[330371426,1719337886584,-500.0,0.00019452,2]
[330371427,1719337886593,-500.0,0.00019452,2]
[330371428,1719337886604,-500.0,0.00019452,2]
[330371429,1719337886613,-4133.33,0.00019452,2]
[330371430,1719337886622,-500.0,0.00019452,2]
[330371431,1719337886631,-709.2,0.00019452,2]
[330371432,1719337886641,-1249.47,0.00019452,2]
[330371433,1719337886650,-2499.52,0.00019452,2]
[330371434,1719337886659,-2511.23,0.00019452,2]
[330371435,1719337886668,-500.0,0.00019452,2]
[330371436,1719337886677,-991.31,0.00019452,2]
[330371437,1719337886686,-500.0,0.00019452,2]
[330371438,1719337886695,-500.0,0.00019452,2]
[330371439,1719337886704,-16464.04,0.00019452,2]
[330371440,1719337886713,-1636.71,0.00019452,2]
[330371441,1719337886722,-500.0,0.00019452,2]
[330371442,1719337886731,-1279.93,0.00019452,2]
[330371443,1719337886740,-500.0,0.00019452,2]
[330371444,1719337886749,-500.0,0.00019452,2]
[330371445,1719337886758,-4519.25,0.00019452,2]
[330371446,1719337886767,-711.6,0.00019452,2]
[330371447,1719337886776,-635.3,0.00019452,2]
[330371448,1719337886786,-813.02,0.00019452,2]
[330371449,1719337886795,-867.36,0.00019452,2]
[330371450,1719337886804,-984.69,0.00019452,2]
[330371451,1719337886813,-2863.52,0.00019452,2]
[330371452,1719337886825,-207.649236,0.00019452,2]
[330371453,1719337886834,-500.0,0.00019452,2]
[330371454,1719337886843,-207.649236,0.00019452,2]
[330371455,1719337886852,-1078.44,0.00019452,2]
[330371456,1719337886861,-579.91,0.00019452,2]
[330371457,1719337886870,-500.0,0.00019452,2]
[330371458,1719337886879,-207.649236,0.00019452,2]
[330371459,1719337886888,-207.649236,0.00019452,2]
[330371460,1719337886897,-500.0,0.00019452,2]
[330371461,1719337886907,-6876.69,0.00019452,2]
[330371462,1719337886916,-207.649236,0.00019452,2]
[330371463,1719337886925,-500.0,0.00019452,2]
[330371464,1719337886934,-1635.81,0.00019452,2]
[330371465,1719337886943,-894.63,0.00019452,2]
[330371466,1719337886952,-511.61,0.00019452,2]
[330371467,1719337886962,-500.0,0.00019452,2]
[330371468,1719337886971,-12811.41,0.00019452,2]
[330371469,1719337886980,-207.649236,0.00019452,2]
[330371470,1719337886989,-500.0,0.00019452,2]
[330371471,1719337886998,-207.649236,0.00019452,2]
[330371472,1719337887007,-207.649236,0.00019452,2]
[330371473,1719337887017,-500.0,0.00019452,2]
[330371474,1719337887026,-207.649236,0.00019452,2]
[330371475,1719337887035,-724.58,0.00019452,2]
[330371476,1719337887044,-770.48,0.00019452,2]
[330371477,1719337887053,-207.649236,0.00019452,2]
[330371478,1719337887062,-1778.16,0.00019452,2]
[330371479,1719337887073,-500.0,0.00019452,2]
[330371480,1719337887082,-500.0,0.00019452,2]
[330371481,1719337887092,-2214.33,0.00019452,2]
[330371482,1719337887101,-627.16,0.00019452,2]
[330371483,1719337887111,-500.0,0.00019452,2]
[330371484,1719337887120,-1194.74,0.00019452,2]
[330371485,1719337887129,-500.0,0.00019452,2]
[330371486,1719337887138,-500.0,0.00019452,2]
[330371487,1719337887153,-500.0,0.00019452,2]
[330371488,1719337887164,-8218.06,0.00019452,2]
[330371489,1719337887173,-952.48,0.00019452,2]
[330371490,1719337887183,-250.0,0.00019452,2]
[330371491,1719337887192,-6829.1,0.00019452,2]
[330371492,1719337887204,-2323.75,0.00019452,2]
[330371493,1719337887213,-646.01,0.00019452,2]
[330371494,1719337887223,-500.0,0.00019452,2]
[330371495,1719337887233,-533.6,0.00019452,2]
[330371496,1719337887242,-1023.86,0.00019452,2]
[330371497,1719337887251,-1807.94,0.00019452,2]
[330371498,1719337887260,-11065.02,0.00019452,2]
[330371499,1719337887269,-500.0,0.00019452,2]
[330371500,1719337887279,-500.0,0.00019452,2]
[330371501,1719337887288,-500.0,0.00019452,2]
[330371502,1719337887297,-500.0,0.00019452,2]
[330371503,1719337887306,-539.11,0.00019452,2]
[330371504,1719337887316,-500.0,0.00019452,2]
[330371505,1719337887326,-1104.07,0.00019452,2]
[330371506,1719337887335,-500.0,0.00019452,2]
[330371507,1719337887345,-500.0,0.00019452,2]
[330371508,1719337887354,-663.89,0.00019452,2]
[330371509,1719337887364,-600.35,0.00019452,2]
[330371510,1719337887373,-501.0,0.00019452,2]
[330371511,1719337887382,-500.0,0.00019452,2]
[330371512,1719337887391,-1481.84,0.00019452,2]
[330371513,1719337887400,-522.35,0.00019452,2]
[330371514,1719337887410,-5478.65,0.00019452,2]
[330371515,1719337887421,-1680.53,0.00019452,2]
[330371516,1719337887430,-661.17,0.00019452,2]
[330371517,1719337887439,-500.0,0.00019452,2]
[330371518,1719337887449,-500.0,0.00019452,2]
[330371519,1719337887458,-886.73,0.00019452,2]
[330371520,1719337887467,-3657.63,0.00019452,2]
[330371521,1719337887476,-500.0,0.00019452,2]
[330371522,1719337887485,-500.0,0.00019452,2]
[330371523,1719337887494,-2543.7,0.00019452,2]
[330371524,1719337887503,-10088.1,0.00019452,2]
[330371525,1719337887512,-2456.25,0.00019452,2]
[330371526,1719337887521,-1656.09,0.00019452,2]
[330371527,1719337887530,-500.0,0.00019452,2]
[330371528,1719337887539,-500.0,0.00019452,2]
[330371529,1719337887548,-2328.62,0.00019452,2]
[330371530,1719337887557,-3868.22,0.00019452,2]
[330371531,1719337887566,-500.0,0.00019452,2]
[330371532,1719337887575,-1796.89,0.00019452,2]
[330371533,1719337887584,-500.0,0.00019452,2]
[330371534,1719337887593,-4014.66,0.00019452,2]
[330371535,1719337887603,-500.0,0.00019452,2]
[330371536,1719337887611,-500.0,0.00019452,2]
[330371537,1719337887620,-7129.8,0.00019452,2]
[330371538,1719337887630,-500.0,0.00019452,2]
[330371539,1719337887639,-500.0,0.00019452,2]
[330371540,1719337887649,-500.0,0.00019452,2]
[330371541,1719337887658,-500.0,0.00019452,2]
[330371542,1719337887667,-3434.69,0.00019452,2]
[330371543,1719337887678,-2063.73,0.00019452,2]
[330371544,1719337887866,-3567.64,0.00019452,2]
[330371545,1719337887876,-914.75,0.00019452,2]
[330371546,1719337887886,-1821.82,0.00019452,2]
[330371547,1719337887896,-1475.68,0.00019452,2]
[330371548,1719337887905,-500.0,0.00019452,2]
[330371549,1719337887915,-546.57,0.00019452,2]
[330371550,1719337887926,-500.0,0.00019452,2]
[330371551,1719337887937,-750.23,0.00019452,2]
[330371552,1719337887946,-559.73,0.00019452,2]
[330371553,1719337887955,-500.0,0.00019452,2]
[330371554,1719337887968,-500.0,0.00019452,2]
[330371555,1719337887977,-500.0,0.00019452,2]
[330371556,1719337887987,-14507.85,0.00019452,2]
[330371557,1719337887996,-500.0,0.00019452,2]
[330371558,1719337888005,-500.0,0.00019452,2]
[330371559,1719337888015,-500.0,0.00019452,2]
[330371560,1719337888026,-500.0,0.00019452,2]
[330371561,1719337888035,-2198.32,0.00019452,2]
[330371562,1719337888045,-500.0,0.00019452,2]
[330371563,1719337888055,-38249.94,0.00019452,2]
[330371564,1719337888064,-500.0,0.00019452,2]
[330371565,1719337888075,-1011.11,0.00019452,2]
[330371566,1719337888084,-1316.74,0.00019452,2]
[330371567,1719337888094,-500.0,0.00019452,2]
[330371568,1719337888104,-500.0,0.00019452,2]
[330371569,1719337888113,-638.3025612,0.00019452,2]
[330371570,1719337888123,-887.9,0.00019452,2]
[330371571,1719337888133,-500.0,0.00019452,2]
[330371572,1719337888144,-500.0,0.00019452,2]
[330371573,1719337888156,-27014.67,0.00019452,2]
[330371574,1719337888166,-697.9,0.00019452,2]
[330371575,1719337888176,-500.0,0.00019452,2]
[330371576,1719337888187,-500.0,0.00019452,2]
[330371577,1719337888197,-500.0,0.00019452,2]
[330371578,1719337888207,-1003.68,0.00019452,2]
[330371579,1719337888217,-500.0,0.00019452,2]
[330371580,1719337888228,-1975.91,0.00019452,2]
[330371581,1719337888240,-1806.83,0.00019452,2]
[330371582,1719337888249,-1578.23,0.00019452,2]
[330371583,1719337888258,-500.0,0.00019452,2]
[330371584,1719337888268,-1550.6,0.00019452,2]
[330371585,1719337888277,-4800.32,0.00019452,2]
[330371586,1719337888286,-500.0,0.00019452,2]
[330371587,1719337888296,-500.0,0.00019452,2]
[330371588,1719337888307,-726.31,0.00019452,2]
[330371589,1719337888317,-500.0,0.00019452,2]
[330371590,1719337888327,-500.0,0.00019452,2]
[330371591,1719337888336,-3087.64,0.00019452,2]
[330371592,1719337888346,-1230.61,0.00019452,2]
[330371593,1719337888356,-486.544328,0.00019452,2]
[330371594,1719337888365,-486.544328,0.00019452,2]
[330371595,1719337888375,-500.0,0.00019452,2]
[330371596,1719337888385,-486.544328,0.00019452,2]
[330371597,1719337888394,-500.0,0.00019452,2]
[330371598,1719337888404,-486.544328,0.00019452,2]
[330371599,1719337888413,-500.0,0.00019452,2]
[330371600,1719337888423,-500.0,0.00019452,2]
[330371601,1719337888432,-486.544328,0.00019452,2]
[330371602,1719337888442,-486.544328,0.00019452,2]
[330371603,1719337888452,-3280.0,0.00019452,2]
[330371604,1719337888461,-500.0,0.00019452,2]
[330371605,1719337888470,-500.0,0.00019452,2]
[330371606,1719337888480,-679.84,0.00019452,2]
[330371607,1719337888491,-486.544328,0.00019452,2]
[330371608,1719337888500,-486.544328,0.00019452,2]
[330371609,1719337888510,-500.0,0.00019452,2]
[330371610,1719337888519,-500.0,0.00019452,2]
[330371611,1719337888529,-486.544328,0.00019452,2]
[330371612,1719337888538,-486.544328,0.00019452,2]
[330371613,1719337888547,-486.544328,0.00019452,2]
[330371614,1719337888556,-486.544325,0.00019452,2]
[330371615,1719337888565,-271.0274986,0.00019452,2]
[330371616,1719337888574,-1791.93,0.00019452,2]
[330371617,1719337888583,-500.0,0.00019452,2]
[330371618,1719337888592,-500.0,0.00019452,2]
[330371619,1719337888602,-709.69,0.00019452,2]
[330371620,1719337888611,-874.77,0.00019452,2]
[330371621,1719337888620,-858.99,0.00019452,2]
[330371622,1719337888630,-500.0,0.00019452,2]
[330371623,1719337888640,-3522.11,0.00019452,2]
[330371624,1719337888649,-17618.37,0.00019452,2]
[330371625,1719337888659,-500.0,0.00019452,2]
[330371626,1719337888668,-1076.73,0.00019452,2]
[330371627,1719337888677,-587.49,0.00019452,2]
[330371628,1719337888686,-500.0,0.00019452,2]
[330371629,1719337888696,-500.0,0.00019452,2]
[330371630,1719337888707,-500.0,0.00019452,2]
[330371631,1719337888717,-9360.45,0.00019452,2]
[330371632,1719337888726,-2768.81,0.00019452,2]
[330371633,1719337888736,-3587.57,0.00019452,2]
[330371634,1719337888746,-1531.05,0.00019452,2]
[330371635,1719337888755,-654.5,0.00019452,2]
[330371636,1719337888764,-500.0,0.00019452,2]
[330371637,1719337888773,-588.37,0.00019452,2]
[330371638,1719337888782,-1310.42,0.00019452,2]
[330371639,1719337888792,-4130.12,0.00019452,2]
[330371640,1719337888801,-2960.82,0.00019452,2]
[330371641,1719337888810,-500.0,0.00019452,2]
[330371642,1719337888819,-1063.93,0.00019452,2]
[330371643,1719337888831,-500.0,0.00019452,2]
[330371644,1719337888840,-2408.83,0.00019452,2]
[330371645,1719337888851,-500.0,0.00019452,2]
[330371646,1719337888861,-3984.57,0.00019452,2]
[330371647,1719337888870,-799.95,0.00019452,2]
[330371648,1719337888879,-500.0,0.00019452,2]
[330371649,1719337888888,-10614.48,0.00019452,2]
[330371650,1719337888898,-1748.04,0.00019452,2]
[330371651,1719337888908,-5401.34,0.00019452,2]
[330371652,1719337888917,-500.0,0.00019452,2]
[330371653,1719337888927,-792.5,0.00019452,2]
[330371654,1719337888937,-550.72,0.00019452,2]
[330371655,1719337888949,-3298.16,0.00019452,2]
[330371656,1719337888959,-1468.33,0.00019452,2]
[330371657,1719337888968,-1075.13,0.00019452,2]
[330371658,1719337888978,-500.0,0.00019452,2]
[330371659,1719337888988,-500.0,0.00019452,2]
[330371660,1719337888997,-12850.46,0.00019452,2]
[330371661,1719337889006,-1746.97,0.00019452,2]
[330371662,1719337889016,-164.74896099,0.00019452,2]
[330371663,1719337889025,-3728.91,0.00019452,2]
[330371664,1719337889034,-500.0,0.00019452,2]
[330371665,1719337889043,-6211.69,0.00019452,2]
[330371666,1719337889052,-533.36,0.00019452,2]
[330371667,1719337889062,-1619.57,0.00019452,2]
[330371668,1719337889071,-765.33,0.00019452,2]
[330371669,1719337889082,-500.0,0.00019452,2]
[330371670,1719337889091,-687.55,0.00019452,2]
[330371671,1719337889100,-500.0,0.00019452,2]
[330371672,1719337889110,-1253.15,0.00019452,2]
[330371673,1719337889120,-500.0,0.00019452,2]
[330371674,1719337889132,-3214.85,0.00019452,2]
[330371675,1719337889142,-500.0,0.00019452,2]
[330371676,1719337889154,-500.0,0.00019452,2]
[330371677,1719337889163,-500.0,0.00019452,2]
[330371678,1719337889173,-1365.93,0.00019452,2]
[330371679,1719337889182,-1196.83,0.00019452,2]
[330371680,1719337889192,-1014.47,0.00019452,2]
[330371681,1719337889201,-500.0,0.00019452,2]
[330371682,1719337889211,-2068.49,0.00019452,2]
[330371683,1719337889220,-3277.71,0.00019452,2]
[330371684,1719337889229,-2994.62,0.00019452,2]
[330371685,1719337889242,-4726.64,0.00019452,2]
[330371686,1719337889255,-5216.67,0.00019452,2]
[330371687,1719337889264,-1482.28,0.00019452,2]
[330371688,1719337889273,-4078.1,0.00019452,2]
[330371689,1719337889282,-500.0,0.00019452,2]
[330371690,1719337889292,-500.0,0.00019452,2]
[330371691,1719337889301,-500.0,0.00019452,2]
[330371692,1719337889311,-500.0,0.00019452,2]
[330371693,1719337889320,-790.4,0.00019452,2]
[330371694,1719337889331,-1827.73,0.00019452,2]
[330371695,1719337889344,-500.0,0.00019452,2]
[330371696,1719337889354,-686.96,0.00019452,2]
[330371697,1719337889364,-1436.06,0.00019452,2]
[330371698,1719337889374,-500.0,0.00019452,2]
[330371699,1719337889383,-500.0,0.00019452,2]
[330371700,1719337889392,-500.0,0.00019452,2]
[330371701,1719337889401,-500.0,0.00019452,2]
[330371702,1719337889413,-500.0,0.00019452,2]
[330371703,1719337889422,-3074.5,0.00019452,2]
[330371704,1719337889432,-500.0,0.00019452,2]
[330371705,1719337889440,-500.0,0.00019452,2]
[330371706,1719337889452,-500.0,0.00019452,2]
[330371707,1719337889463,-500.0,0.00019452,2]
[330371708,1719337889472,-509.37,0.00019452,2]
[330371709,1719337889482,-500.0,0.00019452,2]
[330371710,1719337889491,-12053.56851484,0.00019506,2]
[330371711,1719337889500,-791.12226459,0.00019548,2]
[330371712,1719337889509,-259.44837065,0.00019625,2]
[330371713,1719337889518,-752.38776102,0.00019626,2]
[330371714,1719337889528,-2875.60395382,0.00019626,2]
[330371715,1719337889538,-2127.0,0.00019634,2]
[330371716,1719337889548,-1000.0,0.00019657,2]
[330371717,1719337889559,-791.12226459,0.00019665,2]
[330371718,1719337889568,-12053.56851484,0.0001972,2]
[330371719,1719337889578,-164.09825038,0.00019726,2]
[330371720,1719337889588,-500.0,0.00019726,2]
[330371721,1719337889597,-500.0,0.00019726,2]
[330371722,1719337889607,-500.0,0.00019726,2]
[330371723,1719337889616,-500.0,0.00019726,2]
[330371724,1719337889626,-500.0,0.00019726,2]
[330371725,1719337889636,-500.0,0.00019726,2]
[330371726,1719337889645,-500.0,0.00019726,2]
[330371727,1719337889655,-500.0,0.00019726,2]
[330371728,1719337889664,-500.0,0.00019726,2]
[330371729,1719337889674,-501.6754214,0.00019726,2]
[330371730,1719337889683,-500.0,0.00019726,2]
[330371731,1719337889692,-529.28176904,0.00019726,2]
[330371732,1719337889702,-614.9075421,0.00019726,2]
[330371733,1719337889711,-500.0,0.00019726,2]
[330371734,1719337889720,-319.7636085,0.00019726,2]
[330371735,1719337889730,-500.0,0.00019726,2]
[330371736,1719337889739,-500.0,0.00019726,2]
[330371737,1719337889748,-500.0,0.00019726,2]
[330371738,1719337889758,-500.0,0.00019726,2]
[330371739,1719337889768,-500.0,0.00019726,2]
[330371740,1719337889777,-268.4800846,0.00019726,2]
[330371741,1719337889786,-500.0,0.00019726,2]
[330371742,1719337889795,-500.0,0.00019726,2]
[330371743,1719337889804,-2500.0,0.00019726,3]
[330371744,1719337889814,-500.0,0.00019726,2]
[330371745,1719337889823,-500.0,0.00019726,2]
[330371746,1719337889834,-500.0,0.00019726,2]
[330371747,1719337889843,-500.0,0.00019726,2]
[330371748,1719337889852,-500.0,0.00019726,2]
[330371749,1719337889862,-500.0,0.00019726,2]
[330371750,1719337889871,-500.0,0.00019726,2]
[330371751,1719337889881,-500.0,0.00019726,2]
[330371752,1719337889890,-1041.25,0.00019726,2]
[330371753,1719337889899,-746.42,0.00019726,2]
[330371754,1719337889908,-500.0,0.00019726,2]
[330371755,1719337889919,-500.0,0.00019726,2]
[330371756,1719337889928,-867.14,0.00019726,2]
[330371757,1719337889938,-500.0,0.00019726,2]
[330371758,1719337889947,-500.0,0.00019726,2]
[330371759,1719337889957,-751.61,0.00019726,2]
[330371760,1719337889966,-500.0,0.00019726,2]
[330371761,1719337889976,-1356.99,0.00019726,2]
[330371762,1719337889985,-500.0,0.00019726,2]
[330371763,1719337889995,-1175.6,0.00019726,2]
[330371764,1719337890004,-500.0,0.00019726,2]
[330371765,1719337890014,-500.0,0.00019726,2]
[330371766,1719337890023,-500.0,0.00019726,2]
[330371767,1719337890033,-196.41975077,0.00019726,2]
[330371768,1719337890042,-500.0,0.00019726,2]
[330371769,1719337890052,-1372.16,0.00019726,2]